bitfinex/quotes_BTCUSD_20250131
["timestamp","ask_amount","ask_price","bid_price","bid_amount"]
[1738298144220,0.336691,104390.0,104380.0,0.00025599]
[1738298144424,1.08633982,104390.0,104380.0,0.00025599]
[1738298145707,1.08633982,104390.0,104380.0,0.00525599]
[1738298147602,1.06633982,104390.0,104380.0,0.00025599]
[1738298147850,1.08633982,104390.0,104380.0,0.00225599]
[1738298149021,0.96419622,104390.0,104380.0,0.00225599]
[1738298149702,0.98419622,104390.0,104380.0,0.00225599]
[1738298150666,0.96419622,104390.0,104380.0,0.00225599]
[1738298151043,0.98314809,104390.0,104380.0,0.00225599]
[1738298152214,1.00314809,104390.0,104380.0,0.00225599]
[1738298152419,1.10050485,104390.0,104380.0,0.00225599]
[1738298152636,1.08050485,104390.0,104380.0,0.00225599]
[1738298153061,1.10050485,104390.0,104380.0,0.00225599]
[1738298154805,1.11010378,104390.0,104380.0,0.00225599]
[1738298156976,1.12010378,104390.0,104380.0,0.00225599]
[1738298160589,1.01274702,104390.0,104380.0,0.00225599]
[1738298161208,0.99274702,104390.0,104380.0,0.00225599]
[1738298161463,1.01274702,104390.0,104380.0,0.00225599]
[1738298161680,0.99274702,104390.0,104380.0,0.00225599]
[1738298163862,1.01274702,104390.0,104380.0,0.00225599]
[1738298164103,1.11010378,104390.0,104380.0,0.00225599]
[1738298164758,1.09010378,104390.0,104380.0,0.00225599]
[1738298165821,1.41130378,104390.0,104380.0,0.00225599]
[1738298167057,1.43130378,104390.0,104380.0,0.00225599]
[1738298167485,1.41130378,104390.0,104380.0,0.00225599]
[1738298169179,1.43130378,104390.0,104380.0,0.00225599]
[1738298169519,1.41130378,104390.0,104380.0,0.00225599]
[1738298170149,1.43130378,104390.0,104380.0,0.00225599]
[1738298177942,1.44130378,104390.0,104380.0,0.00225599]
[1738298186100,1.34394702,104390.0,104380.0,0.00225599]
[1738298193905,1.42154702,104390.0,104380.0,0.00225599]
[1738298196559,1.34394702,104390.0,104380.0,0.00225599]
[1738298197573,1.45464702,104390.0,104380.0,0.00225599]
[1738298197789,0.043,104380.0,104370.0,0.00025557]
[1738298197983,1.04198845,104380.0,104370.0,0.00025557]
[1738298198186,1.04079054,104380.0,104370.0,0.00025557]
[1738298199633,1.04462454,104380.0,104370.0,0.00025557]
[1738298200732,1.04462454,104380.0,104370.0,0.00225557]
[1738298200933,1.1419813,104380.0,104370.0,0.00225557]
[1738298203391,1.20296162,104380.0,104370.0,0.00225557]
[1738298203807,1.1219813,104380.0,104370.0,0.00225557]
[1738298203998,1.20296162,104380.0,104370.0,0.00225557]
[1738298204214,1.1219813,104380.0,104370.0,0.00225557]
[1738298204456,1.1229813,104380.0,104370.0,0.00025557]
[1738298204659,1.1239813,104380.0,104370.0,0.00025557]
[1738298205041,1.1229813,104380.0,104370.0,0.00025557]
[1738298205246,1.1239813,104380.0,104370.0,0.00025557]
[1738298208150,1.03662454,104380.0,104370.0,0.00025557]
[1738298208415,0.87514422,104380.0,104370.0,0.00025557]
[1738298208951,0.95612454,104380.0,104370.0,0.00025557]
[1738298210144,0.86514422,104380.0,104370.0,0.00025557]
[1738298210353,0.97612454,104380.0,104370.0,0.00025557]
[1738298210559,1.0534813,104380.0,104370.0,0.00025557]
[1738298211199,1.0536032,104380.0,104370.0,0.00025557]
[1738298220305,1.1344032,104380.0,104370.0,0.00025557]
[1738298224150,1.1544032,104380.0,104370.0,0.00025557]
[1738298228689,1.1344032,104380.0,104370.0,0.00025557]
[1738298228947,1.2844032,104380.0,104370.0,0.00025557]
[1738298229157,0.48729364,104360.0,104350.0,0.00025578]
[1738298229371,1.1511753,104360.0,104350.0,0.00025578]
[1738298230614,1.15122331,104360.0,104350.0,0.00025578]
[1738298230905,1.15122331,104360.0,104350.0,0.00225578]
[1738298234826,1.18020063,104360.0,104350.0,0.00225578]
[1738298242940,1.16020063,104360.0,104350.0,0.00225578]
[1738298243795,0.16676,104340.0,104330.0,0.08055557]
[1738298243999,0.7899157,104340.0,104330.0,0.08055557]
[1738298244847,0.81426522,104340.0,104330.0,0.08055557]
[1738298244982,0.81426522,104340.0,104330.0,0.09055557]
[1738298246938,0.7332849,104340.0,104330.0,0.09055557]
[1738298248732,0.61304174,104340.0,104330.0,0.13575557]
[1738298248975,0.46928174,104340.0,104330.0,0.37677273]
[1738298249395,0.61304174,104340.0,104330.0,0.27952957]
[1738298250144,0.61304174,104340.0,104330.0,0.13575557]
[1738298255706,0.63604174,104340.0,104330.0,0.13575557]
[1738298258858,0.63604174,104340.0,104330.0,0.09055557]
[1738298259088,1.10410972,104340.0,104330.0,0.01025557]
[1738298263539,1.00675296,104340.0,104330.0,0.01025557]
[1738298263751,0.8832849,104340.0,104330.0,0.01025557]
[1738298267153,0.78604174,104340.0,104330.0,0.01025557]
[1738298271819,0.8832849,104340.0,104330.0,0.01025557]
[1738298274568,1.00675296,104340.0,104330.0,0.01025557]
[1738298274949,1.10410972,104340.0,104330.0,0.01025557]
[1738298277654,1.15160972,104340.0,104330.0,0.01025557]
[1738298278287,1.23210972,104340.0,104330.0,0.01025557]
[1738298279118,1.23210972,104340.0,104330.0,0.00825557]
[1738298279342,1.23210972,104340.0,104330.0,0.00025557]
[1738298279587,1.23210972,104340.0,104310.0,0.01458722]
[1738298279588,0.166788,104320.0,104310.0,0.01458722]
[1738298279830,0.7333129,104320.0,104310.0,0.01458722]
[1738298280036,1.00678096,104320.0,104310.0,0.01458722]
[1738298280243,1.02678096,104320.0,104310.0,0.01458722]
[1738298281041,1.02678096,104320.0,104310.0,0.0167316]
[1738298282894,1.07518096,104320.0,104310.0,0.0167316]
[1738298283301,1.05518096,104320.0,104310.0,0.0167316]
[1738298283503,1.17253772,104320.0,104310.0,0.0167316]
[1738298283627,1.15028096,104320.0,104310.0,0.0167316]
[1738298284435,1.16027955,104320.0,104310.0,0.0167316]
[1738298285446,1.17943029,104320.0,104310.0,0.0167316]
[1738298285657,1.17943029,104320.0,104310.0,0.0147316]
[1738298285839,1.27678705,104320.0,104310.0,0.0147316]
[1738298286065,1.27778705,104320.0,104310.0,0.0147316]
[1738298286462,1.27878705,104320.0,104310.0,0.0147316]
[1738298288380,1.28878705,104320.0,104310.0,0.0147316]
[1738298288589,1.27878705,104320.0,104310.0,0.0147316]
[1738298294656,1.31751793,104320.0,104310.0,0.01498759]
[1738298295877,1.0155617,104320.0,104310.0,0.01498759]
[1738298296077,0.64421907,104320.0,104310.0,0.01498759]
[1738298296406,0.7061678,104320.0,104310.0,0.01498759]
[1738298296611,0.97641096,104320.0,104310.0,0.01498759]
[1738298296787,1.05751043,104320.0,104310.0,0.01498759]
[1738298297151,1.15486719,104320.0,104310.0,0.01498759]
[1738298297371,1.20186719,104320.0,104310.0,0.01498759]
[1738298298638,1.16324201,104320.0,104310.0,0.01498759]
[1738298300804,1.18324201,104320.0,104310.0,0.01498759]
[1738298303344,1.26344201,104320.0,104310.0,0.01498759]
[1738298304724,1.38701577,104320.0,104310.0,0.01498759]
[1738298304928,1.36701577,104320.0,104310.0,0.01498759]
[1738298305607,1.24344201,104320.0,104310.0,0.01498759]
[1738298305820,1.36701577,104320.0,104310.0,0.01498759]
[1738298306490,1.38200377,104320.0,104310.0,0.01498759]
[1738298308018,1.38200377,104320.0,104310.0,5.9e-07]
[1738298309093,0.316802,104310.0,104300.0,7.7e-07]
[1738298309307,1.35703118,104310.0,104300.0,0.00014521]
[1738298310666,1.36003118,104310.0,104300.0,0.00014521]
[1738298311206,1.36103118,104310.0,104300.0,0.00014521]
[1738298311737,1.36003118,104310.0,104300.0,0.00014521]
[1738298312098,1.36203118,104310.0,104300.0,0.00014521]
[1738298316329,1.38157136,104310.0,104300.0,0.00014521]
[1738298318310,1.38157136,104310.0,104300.0,0.0004012]
[1738298318943,0.15,104280.0,104270.0,0.0002562]
[1738298319149,1.03916641,104280.0,104270.0,0.00073848]
[1738298319354,1.00694166,104280.0,104270.0,0.08133848]
[1738298319558,0.8833679,104280.0,104270.0,0.08133848]
[1738298320212,0.8833679,104280.0,104270.0,0.08333848]
[1738298322078,1.00694166,104280.0,104270.0,0.08333848]
[1738298323324,1.03581268,104280.0,104270.0,0.08333848]
[1738298323533,1.13316944,104280.0,104270.0,0.00273848]
[1738298324991,1.15316944,104280.0,104270.0,0.00273848]
[1738298325296,1.3930432,104280.0,104270.0,0.00273848]
[1738298326437,1.3930432,104280.0,104270.0,0.00073848]
[1738298327698,1.3940432,104280.0,104270.0,0.00073848]
[1738298330351,1.3840432,104280.0,104270.0,0.00073848]
[1738298331226,0.346857,104270.0,104260.0,0.00025599]
[1738298331429,0.72053068,104270.0,104260.0,3.3e-07]
[1738298331632,1.18981242,104270.0,104260.0,3.3e-07]
[1738298332593,0.31044476,104260.0,104250.0,0.00025578]
[1738298332791,1.14426966,104260.0,104250.0,0.00030811]
[1738298333204,1.13426966,104260.0,104250.0,1.1e-07]
[1738298333406,1.23162642,104260.0,104250.0,1.1e-07]
[1738298334237,1.35520018,104260.0,104250.0,1.1e-07]
[1738298334396,1.24262642,104260.0,104250.0,1.1e-07]
[1738298336795,0.196884,104250.0,104240.0,0.00021589]
[1738298336996,1.01055642,104250.0,104240.0,0.0003605]
[1738298337193,1.10791318,104250.0,104240.0,0.0003605]
[1738298339814,1.10791318,104250.0,104240.0,0.0023605]
[1738298340033,1.10791318,104250.0,104240.0,0.0003605]
[1738298340243,1.10891318,104250.0,104240.0,0.0003605]
[1738298340443,1.11191318,104250.0,104240.0,0.0003605]
[1738298340640,1.11091318,104250.0,104240.0,0.0003605]
[1738298341205,1.11291318,104250.0,104240.0,0.0003605]
[1738298341780,1.11291318,104250.0,104240.0,5e-07]
[1738298341986,1.15130518,104250.0,104240.0,5e-07]
[1738298342393,1.35710518,104250.0,104240.0,5e-07]
[1738298343840,1.40540518,104250.0,104240.0,5e-07]
[1738298345947,1.10867466,104250.0,104240.0,5e-07]
[1738298348789,1.10727466,104250.0,104240.0,5e-07]
[1738298350157,0.7354089,104250.0,104240.0,5e-07]
[1738298350558,1.00898266,104250.0,104240.0,5e-07]
[1738298350775,0.88198266,104250.0,104240.0,5e-07]
[1738298350976,1.03198266,104250.0,104240.0,5e-07]
[1738298353365,1.01198266,104250.0,104240.0,5e-07]
[1738298353568,1.03198266,104250.0,104240.0,5e-07]
[1738298353982,1.03198266,104250.0,104240.0,0.0001225]
[1738298354193,1.03223886,104250.0,104240.0,0.0001225]
[1738298354346,1.01223886,104250.0,104240.0,0.0001225]
[1738298354571,1.12959562,104250.0,104240.0,0.0001225]
[1738298357388,1.10959562,104250.0,104240.0,0.0001225]
[1738298357594,1.12959562,104250.0,104240.0,0.0001225]
[1738298362270,0.8656651,104250.0,104240.0,0.1292225]
[1738298362883,0.61842194,104250.0,104240.0,0.1292225]
[1738298363313,0.61342194,104250.0,104240.0,0.13878976]
[1738298363633,0.61442194,104250.0,104240.0,0.13878976]
[1738298363851,0.76442194,104250.0,104240.0,0.13878976]
[1738298364288,0.76542194,104250.0,104240.0,0.14378976]
[1738298364489,0.76442194,104250.0,104240.0,0.13878976]
[1738298364695,0.76342194,104250.0,104240.0,0.13878976]
[1738298364909,0.76342194,104250.0,104240.0,0.14378976]
[1738298365135,0.78642194,104250.0,104240.0,0.14478976]
[1738298366154,0.78642194,104250.0,104240.0,0.13978976]
[1738298366336,0.78642194,104250.0,104240.0,0.14078976]
[1738298366789,0.78642194,104250.0,104240.0,0.14178976]
[1738298367224,0.78642194,104250.0,104240.0,0.1312225]
[1738298371876,0.9099957,104250.0,104240.0,0.0833225]
[1738298372086,0.78642194,104250.0,104240.0,0.0833225]
[1738298392361,0.78642194,104250.0,104240.0,0.0021225]
[1738298394475,0.63642194,104250.0,104240.0,0.0775225]
[1738298417581,0.61342194,104250.0,104240.0,0.2214205]
[1738298417737,0.61342194,104250.0,104240.0,0.0775225]
[1738298421617,0.61342194,104250.0,104240.0,0.2214205]
[1738298424424,0.61342194,104250.0,104240.0,0.23938202]
[1738298425608,0.61342194,104250.0,104240.0,0.09548402]
[1738298426005,0.61342194,104250.0,104240.0,0.23938202]
[1738298426766,0.46953794,104250.0,104240.0,0.33662518]
[1738298426977,0.46953794,104250.0,104240.0,0.38402518]
[1738298427379,0.46953794,104250.0,104240.0,0.36606366]
[1738298427959,0.46953794,104250.0,104240.0,0.36706366]
[1738298428167,0.47053794,104250.0,104240.0,0.37506366]
[1738298432319,0.47053794,104250.0,104240.0,0.39300411]
[1738298434512,0.47053794,104250.0,104240.0,0.40264976]
[1738298440517,0.47053794,104250.0,104240.0,0.38470931]
[1738298443824,0.47053794,104250.0,104240.0,0.41459295]
[1738298444243,0.47053794,104250.0,104240.0,0.38470931]
[1738298446135,0.47053794,104250.0,104240.0,0.39090931]
[1738298448659,0.47053794,104250.0,104240.0,0.42080145]
[1738298450444,0.47053794,104250.0,104240.0,0.57080145]
[1738298451241,0.46953794,104250.0,104240.0,0.56280145]
[1738298451485,0.46953794,104250.0,104240.0,0.55980145]
[1738298451750,0.47053794,104250.0,104240.0,0.97265845]
[1738298452421,0.46953794,104250.0,104240.0,0.96365845]
[1738298452721,0.47053794,104250.0,104240.0,0.97265845]
[1738298453218,0.47053794,104250.0,104240.0,0.96865845]
[1738298453454,0.37461294,104250.0,104240.0,1.09465845]
[1738298454235,0.35542794,104250.0,104240.0,1.09465845]
[1738298454479,0.31705794,104250.0,104240.0,1.09465845]
[1738298454972,0.00964882,104250.0,104240.0,1.21555845]
[1738298455176,0.0002562,104280.0,104270.0,0.627757]
[1738298455380,0.4797562,104280.0,104270.0,1.73377848]
[1738298455559,0.4797562,104280.0,104270.0,1.10905334]
[1738298456320,0.4797562,104280.0,104270.0,1.11805334]
[1738298457940,0.4797562,104280.0,104270.0,1.12105334]
[1738298459794,0.4797562,104280.0,104270.0,1.13105334]
[1738298460913,0.3838612,104280.0,104270.0,3.34468834]
[1738298461294,0.3838612,104280.0,104270.0,3.37446718]
[1738298461468,0.3263242,104280.0,104270.0,3.34468834]
[1738298461679,0.3263242,104280.0,104270.0,3.33568834]
[1738298462096,0.3263242,104280.0,104270.0,3.34468834]
[1738298462249,0.2304292,104280.0,104270.0,3.42719291]
[1738298462449,0.2304292,104280.0,104270.0,3.42419291]
[1738298462854,0.2304292,104280.0,104270.0,3.42719291]
[1738298463058,0.2112502,104280.0,104270.0,3.42719291]
[1738298463259,0.1537132,104280.0,104270.0,3.42419291]
[1738298463457,0.1345342,104280.0,104270.0,3.42419291]
[1738298463657,0.1345342,104280.0,104270.0,3.42719291]
[1738298464201,0.0769972,104280.0,104270.0,3.41819291]
[1738298464410,0.0386392,104280.0,104270.0,3.42719291]
[1738298465047,0.0194602,104280.0,104270.0,3.42719291]
[1738298465291,2e-07,104280.0,104270.0,3.42719291]
[1738298465507,2e-07,104280.0,104270.0,2.18195791]
[1738298466637,2e-07,104280.0,104270.0,2.17895791]
[1738298466910,2e-07,104280.0,104270.0,2.18195791]
[1738298467112,0.000122,104310.0,104300.0,0.293815]
[1738298467262,0.000122,104310.0,104300.0,1.83981134]
[1738298467465,0.000122,104310.0,104300.0,2.17696134]
[1738298468305,0.00060249,104310.0,104300.0,2.17696134]
[1738298468630,0.00060249,104310.0,104300.0,2.18596134]
[1738298468837,0.00060249,104310.0,104300.0,2.40896134]
[1738298469161,0.00060249,104310.0,104300.0,2.41196134]
[1738298470564,4.9e-07,104310.0,104300.0,2.41196134]
[1738298470754,4.9e-07,104310.0,104300.0,2.12271134]
[1738298471489,4.9e-07,104310.0,104300.0,2.13251853]
[1738298471806,0.00025648,104310.0,104300.0,2.13251853]
[1738298472010,0.00025648,104310.0,104300.0,3.20070453]
[1738298472227,0.00025648,104310.0,104300.0,3.07281053]
[1738298473360,0.00025648,104310.0,104300.0,3.09220397]
[1738298474647,0.00025648,104310.0,104300.0,2.22380397]
[1738298475131,0.00025648,104310.0,104300.0,2.25342772]
[1738298477033,0.00025648,104310.0,104300.0,2.25962772]
[1738298479812,0.00025648,104310.0,104300.0,1.30850372]
[1738298480062,0.00025648,104310.0,104300.0,1.03631197]
[1738298480592,0.00025648,104310.0,104300.0,1.89851197]
[1738298480795,0.00025648,104310.0,104300.0,1.90471197]
[1738298482562,0.00025648,104310.0,104300.0,1.90880663]
[1738298482801,0.00025648,104310.0,104300.0,1.88531853]
[1738298483029,0.00025648,104310.0,104300.0,1.78531853]
[1738298483257,0.00025648,104310.0,104300.0,1.81501016]
[1738298483429,0.00025648,104310.0,104300.0,1.81513196]
[1738298484421,0.00025648,104310.0,104300.0,1.80613196]
[1738298484621,0.00025648,104310.0,104300.0,1.81513196]
[1738298485293,0.00025648,104310.0,104300.0,1.81213196]
[1738298485497,0.00025648,104310.0,104300.0,1.81513196]
[1738298493477,0.00025648,104310.0,104300.0,2.23217596]
[1738298493677,0.00025648,104310.0,104300.0,2.12780396]
[1738298496143,0.00025648,104310.0,104300.0,1.95767496]
[1738298497500,0.00025648,104310.0,104300.0,1.92173996]
[1738298497681,0.00025648,104310.0,104300.0,1.43388678]
[1738298498165,0.00025648,104310.0,104300.0,1.32727878]
[1738298502366,0.00025648,104310.0,104300.0,1.41315281]
[1738298505057,0.08295648,104310.0,104300.0,1.39695281]
[1738298505336,0.12805648,104310.0,104300.0,0.86375281]
[1738298505949,0.60741648,104310.0,104300.0,0.86375281]
[1738298508623,0.60741648,104310.0,104300.0,0.77787878]
[1738298509021,0.60741648,104310.0,104300.0,0.77167878]
[1738298509257,0.60741648,104310.0,104300.0,0.77787878]
[1738298509586,0.60741648,104310.0,104300.0,0.77167878]
[1738298509778,0.60741648,104310.0,104300.0,0.77787878]
[1738298510775,0.60741648,104310.0,104300.0,0.62167878]
[1738298511003,0.60741648,104310.0,104300.0,0.59818715]
[1738298511566,0.75121848,104310.0,104300.0,0.35092899]
[1738298511776,0.75121848,104310.0,104300.0,0.0121218]
[1738298512586,0.75121848,104310.0,104300.0,0.0001218]
[1738298512793,0.75121848,104310.0,104300.0,0.0121218]
[1738298514177,0.75121848,104310.0,104300.0,0.0091218]
[1738298514387,0.75121848,104310.0,104300.0,0.0121218]
[1738298514596,0.75121848,104310.0,104300.0,0.0031218]
[1738298514799,0.75121848,104310.0,104300.0,0.0121218]
[1738298523019,0.75121848,104310.0,104300.0,0.1559368]
[1738298523274,0.60741648,104310.0,104300.0,0.1559368]
[1738298523916,0.75121848,104310.0,104300.0,0.1559368]
[1738298524656,0.60741648,104310.0,104300.0,0.1559368]
[1738298526611,0.75121848,104310.0,104300.0,0.1559368]
[1738298534460,0.75121848,104310.0,104300.0,0.0121218]
[1738298548409,0.76101636,104310.0,104300.0,0.0121218]
[1738298549671,0.75121848,104310.0,104300.0,0.0121218]
[1738298558049,0.77421848,104310.0,104300.0,0.0121218]
[1738298558259,1.04983707,104310.0,104300.0,0.0121218]
[1738298558458,0.95248031,104310.0,104300.0,0.0121218]
[1738298559462,0.95248031,104310.0,104300.0,0.0091218]
[1738298560107,1.50469898,104310.0,104300.0,0.0001218]
[1738298560546,1.50469898,104310.0,104300.0,0.0081218]
[1738298560747,1.50469898,104310.0,104300.0,0.0021218]
[1738298560957,1.50469898,104310.0,104300.0,0.0001218]
[1738298561157,1.50469898,104310.0,104300.0,0.0031218]
[1738298561360,1.61205574,104310.0,104300.0,0.0011218]
[1738298561783,1.61205574,104310.0,104300.0,0.0021218]
[1738298562788,1.61205574,104310.0,104300.0,0.0011218]
[1738298563582,1.61205574,104310.0,104300.0,0.0001218]
[1738298563799,1.29085574,104310.0,104300.0,0.0001218]
[1738298564005,1.20983707,104310.0,104300.0,0.0001218]
[1738298564633,1.29085574,104310.0,104300.0,0.0001218]
[1738298565179,1.30999929,104310.0,104300.0,0.0001218]
[1738298566557,1.32999929,104310.0,104300.0,0.0001218]
[1738298570977,0.143843,104280.0,104270.0,0.0001219]
[1738298571157,0.646203,104280.0,104270.0,0.00968916]
[1738298572748,0.646203,104280.0,104270.0,0.01168916]
[1738298573285,0.646203,104280.0,104270.0,0.01768916]
[1738298577769,0.65561041,104280.0,104270.0,0.01768916]
[1738298579683,0.646203,104280.0,104270.0,0.01768916]
[1738298587188,0.623203,104280.0,104270.0,0.24404616]
[1738298588676,0.623203,104280.0,104270.0,0.10018916]
[1738298594556,0.623203,104280.0,104270.0,0.24404616]
[1738298595167,0.623203,104280.0,104270.0,0.10018916]
[1738298598431,0.623203,104280.0,104270.0,0.01768916]
[1738298601226,0.623203,104280.0,104270.0,0.0081219]
[1738298605270,0.623203,104280.0,104270.0,0.1519789]
[1738298607069,0.623203,104280.0,104270.0,0.0081219]
[1738298615390,0.724203,104280.0,104270.0,0.0081219]
[1738298618664,0.646203,104280.0,104270.0,0.0081219]
[1738298619927,0.623203,104280.0,104270.0,0.0081219]
[1738298626738,0.646203,104280.0,104270.0,0.0081219]
[1738298630305,0.775203,104280.0,104270.0,0.0081219]
[1738298632659,0.94358577,104280.0,104270.0,0.0081219]
[1738298633781,1.02460444,104280.0,104270.0,0.0081219]
[1738298633989,0.94358577,104280.0,104270.0,0.0081219]
[1738298634393,0.95346483,104280.0,104270.0,0.0081219]
[1738298634980,1.27466483,104280.0,104270.0,0.0081219]
[1738298637454,1.5056835,104280.0,104270.0,0.0081219]
[1738298637714,1.5031835,104280.0,104270.0,0.0081219]
[1738298638700,1.5031835,104280.0,104270.0,0.0001219]
[1738298638895,1.58815108,104280.0,104270.0,0.0001219]
[1738298639191,1.58815108,104280.0,104270.0,0.0041219]
[1738298639409,1.5031835,104280.0,104270.0,0.0041219]
[1738298639623,1.5031835,104280.0,104270.0,0.0031219]
[1738298640022,1.42216483,104280.0,104270.0,0.0031219]
[1738298640576,1.42216483,104280.0,104270.0,0.0001219]
[1738298640796,1.5031835,104280.0,104270.0,0.0001219]
[1738298641005,1.27934026,104280.0,104270.0,0.0001219]
[1738298642077,1.28934026,104280.0,104270.0,0.0001219]
[1738298644360,1.1919835,104280.0,104270.0,0.0001219]
[1738298650018,1.1914835,104280.0,104270.0,0.0001219]
[1738298655154,1.19173949,104280.0,104270.0,0.0001219]
[1738298656114,1.29263949,104280.0,104270.0,0.0001219]
[1738298656319,1.19173949,104280.0,104270.0,0.0001219]
[1738298663527,1.28909625,104280.0,104270.0,0.0001219]
[1738298664155,1.19173949,104280.0,104270.0,0.0001219]
[1738298667406,1.10072082,104280.0,104270.0,0.0001219]
[1738298667812,1.18173949,104280.0,104270.0,0.0001219]
[1738298668046,1.10072082,104280.0,104270.0,0.0001219]
[1738298668882,1.18173949,104280.0,104270.0,0.0001219]
[1738298669094,1.10072082,104280.0,104270.0,0.0001219]
[1738298670401,1.18173949,104280.0,104270.0,0.0001219]
[1738298670920,1.20588387,104280.0,104270.0,0.0001219]
[1738298671507,1.18173949,104280.0,104270.0,0.0001219]
[1738298672117,1.10072082,104280.0,104270.0,0.0001219]
[1738298675166,1.18173949,104280.0,104270.0,0.0001219]
[1738298675618,1.10072082,104280.0,104270.0,0.0001219]
[1738298676120,1.18173949,104280.0,104270.0,0.0001219]
[1738298677984,1.27909625,104280.0,104270.0,0.0001219]
[1738298681160,1.18173949,104280.0,104270.0,0.0001219]
[1738298689220,0.166871,104260.0,104250.0,0.126]
[1738298689609,0.646231,104260.0,104250.0,0.126]
[1738298690501,0.646323,104260.0,104250.0,0.126]
[1738298691740,0.646323,104260.0,104250.0,0.127]
[1738298691982,0.646323,104260.0,104250.0,0.13]
[1738298692303,0.82469843,104260.0,104250.0,0.0818]
[1738298692721,0.92194159,104260.0,104250.0,0.004]
[1738298692939,0.93155875,104260.0,104250.0,0.004]
[1738298693276,0.93155875,104260.0,104250.0,0.003]
[1738298693485,1.08155875,104260.0,104250.0,0.003]
[1738298694488,0.166884,104250.0,104240.0,0.125722]
[1738298694613,0.646244,104250.0,104240.0,0.125722]
[1738298695723,0.646244,104250.0,104240.0,0.128722]
[1738298697774,0.646244,104250.0,104240.0,0.129722]
[1738298704266,0.623244,104250.0,104240.0,0.129722]
[1738298709459,0.623244,104250.0,104240.0,0.128762]
[1738298709945,1.582244,104250.0,104240.0,0.128762]
[1738298713673,1.582244,104250.0,104240.0,0.1288839]
[1738298715056,1.605244,104250.0,104240.0,0.0841219]
[1738298715259,1.68626267,104250.0,104240.0,0.0041219]
[1738298716034,1.605244,104250.0,104240.0,0.0041219]
[1738298725685,1.60549999,104250.0,104240.0,0.0041219]
[1738298726328,2.19607034,104250.0,104240.0,0.0041219]
[1738298726536,2.11505167,104250.0,104240.0,0.0041219]
[1738298727400,2.06556182,104250.0,104240.0,0.0031219]
[1738298727545,2.06556182,104250.0,104240.0,0.0001219]
[1738298728002,2.06556182,104250.0,104240.0,0.0011219]
[1738298730198,2.14658049,104250.0,104240.0,0.0011219]
[1738298730412,2.06556182,104250.0,104240.0,0.0011219]
[1738298730640,2.16291858,104250.0,104240.0,0.0011219]
[1738298730848,2.24393725,104250.0,104240.0,0.0011219]
[1738298731708,2.16291858,104250.0,104240.0,0.0011219]
[1738298734182,2.16291858,104250.0,104240.0,0.0001219]
[1738298734749,2.06556182,104250.0,104240.0,0.0001219]
[1738298736142,2.38676182,104250.0,104240.0,0.0001219]
[1738298742970,2.22364315,104250.0,104240.0,0.0001219]
[1738298743207,2.05369999,104250.0,104240.0,0.0001219]
[1738298743423,2.13471866,104250.0,104240.0,0.0001219]
[1738298743841,2.15771866,104250.0,104240.0,0.0001219]
[1738298744041,2.07669999,104250.0,104240.0,0.0001219]
[1738298744258,2.15771866,104250.0,104240.0,0.0001219]
[1738298745483,2.24602544,104250.0,104240.0,0.0001219]
[1738298746503,2.15771866,104250.0,104240.0,0.0001219]
[1738298746801,2.25496182,104250.0,104240.0,0.0001219]
[1738298748238,2.25490797,104250.0,104240.0,0.0001219]
[1738298765873,1.93370797,104250.0,104240.0,0.0001219]
[1738298771417,1.8526893,104250.0,104240.0,0.0001219]
[1738298772039,1.93370797,104250.0,104240.0,0.0001219]
[1738298772723,1.75544614,104250.0,104240.0,0.0001219]
[1738298780180,1.83646481,104250.0,104240.0,0.0001219]
[1738298780368,2.00870797,104250.0,104240.0,0.0001219]
[1738298780625,2.05690797,104250.0,104240.0,0.0001219]
[1738298781741,2.13792664,104250.0,104240.0,0.0001219]
[1738298789986,2.13792664,104250.0,104220.0,0.0001219]
[1738298789987,0.173,104240.0,104220.0,0.0001219]
[1738298790316,0.45207343,104230.0,104220.0,0.0001219]
[1738298790519,1.01616795,104230.0,104220.0,0.0001219]
[1738298790937,1.01611446,104230.0,104220.0,0.0001219]
[1738298791161,0.93018034,104230.0,104220.0,0.0041219]
[1738298791373,0.93018034,104230.0,104220.0,0.0011219]
[1738298791753,0.93018034,104230.0,104220.0,0.0041219]
[1738298792212,0.93018034,104230.0,104220.0,0.0051219]
[1738298792760,0.84728034,104230.0,104220.0,0.0051219]
[1738298792951,0.72046167,104230.0,104220.0,0.0051219]
[1738298793359,0.80148034,104230.0,104220.0,0.0051219]
[1738298794639,0.82033113,104230.0,104220.0,0.0051219]
[1738298796077,0.82058733,104230.0,104220.0,0.0051219]
[1738298796342,0.88011867,104230.0,104220.0,0.0051219]
[1738298796848,0.82058733,104230.0,104220.0,0.0051219]
[1738298798790,0.83031892,104230.0,104220.0,0.0051219]
[1738298803117,0.86865844,104230.0,104220.0,0.0051219]
[1738298807654,0.83026544,104230.0,104220.0,0.0051219]
[1738298808366,0.74924677,104230.0,104220.0,0.0051219]
[1738298808615,0.78763977,104230.0,104220.0,0.0051219]
[1738298809875,0.86865844,104230.0,104220.0,0.0051219]
[1738298818911,0.83026544,104230.0,104220.0,0.0051219]
[1738298822095,0.89823814,104230.0,104220.0,0.0051219]
[1738298823187,0.98026544,104230.0,104220.0,0.0051219]
[1738298824068,1.05726544,104230.0,104220.0,0.0051219]
[1738298828198,1.05726544,104230.0,104220.0,0.0011219]
[1738298828395,1.05726544,104230.0,104220.0,0.0021219]
[1738298830133,1.05726544,104230.0,104220.0,0.0011219]
[1738298830403,1.05726544,104230.0,104220.0,0.0021219]
[1738298830853,1.05726544,104230.0,104220.0,0.0011219]
[1738298831522,1.08026544,104230.0,104220.0,0.0011219]
[1738298831746,1.08026544,104230.0,104220.0,1e-08]
[1738298831747,1.25685757,104230.0,104220.0,1e-08]
[1738298831966,1.1758389,104230.0,104220.0,1e-08]
[1738298832619,0.16694,104210.0,104200.0,0.01598809]
[1738298832849,0.74354316,104210.0,104200.0,0.01598809]
[1738298833068,0.6463,104210.0,104200.0,0.09288809]
[1738298833825,0.6463,104210.0,104200.0,0.09336808]
[1738298834241,0.6463,104210.0,104200.0,0.09436808]
[1738298834491,0.6463,104210.0,104200.0,0.09836808]
[1738298839776,0.6652109,104210.0,104200.0,0.09836808]
[1738298840944,0.6233,104210.0,104200.0,0.09836808]
[1738298841594,0.62287727,104210.0,104200.0,0.09836808]
[1738298852856,0.63247151,104210.0,104200.0,0.09836808]
[1738298854643,0.63247151,104210.0,104200.0,0.02146808]
[1738298856638,0.6327275,104210.0,104200.0,0.02146808]
[1738298857997,0.71374617,104210.0,104200.0,0.02146808]
[1738298860053,0.6327275,104210.0,104200.0,0.02146808]
[1738298860597,0.71374617,104210.0,104200.0,0.02146808]
[1738298861312,0.71374617,104210.0,104200.0,0.01646808]
[1738298861524,0.71374617,104210.0,104200.0,0.01746808]
[1738298861725,0.71374617,104210.0,104200.0,0.02146808]
[1738298862922,0.71374617,104210.0,104200.0,0.02046808]
[1738298863151,0.6327275,104210.0,104200.0,0.02046808]
[1738298863573,0.6327275,104210.0,104200.0,0.01646808]
[1738298863781,0.62313326,104210.0,104200.0,0.01746808]
[1738298867016,0.70415193,104210.0,104200.0,0.01746808]
[1738298871138,0.62313326,104210.0,104200.0,0.01746808]